[Event "ESTCC-50 2025"]
[Site "Swidnica"]
[Date "2025.04.09"]
[Round "5.1"]
[White "Bischoff, Klaus"]
[Black "Laszewicz, Pawel"]
[Result "1-0"]
[Annotator "ChessBase"]
[ECO "D54"]
[WhiteElo "2425"]
[BlackElo "2011"]
[PlyCount "86"]
[EventDate "2025.04.05"]
[EventType "team-tourn"]
[EventCountry "POL"]
[SourceTitle "playchess.com"]
[Source "ChessBase"]
[SourceQuality "1"]
[WhiteTeam "Germany"]
[BlackTeam "Poland"]
[WhiteTeamCountry "GER"]
[BlackTeamCountry "POL"]
[TimeControl "40/5400+30:1800+30"]

1. d4 {[%emt 0:00:07]} e6 {[%emt 0:01:50]} 2. c4 {[%emt 0:00:18]} d5 {[%emt 0:01:07]} 3. Nc3 {[%emt 0:00:14]} Nf6 {[%emt 0:02:35]} 4. Bg5 {[%emt 0:01:46]} Be7 {[%emt 0:03:17]} 5. e3 {[%emt 0:00:13]} O-O {[%emt 0:00:56]} 6. Rc1 {[%emt 0:02:14]} h6 {[%emt 0:05:28]} 7. Bh4 {[%emt 0:00:31]} b6 {[%emt 0:03:41]} 8. cxd5 {[%emt 0:00:53]} exd5 {[%emt 0:03:34]} 9. Nf3 {[%emt 0:02:10]} Be6 {[%emt 0:16:26]} 10. Be2 {[%emt 0:05:19]} Ne4 {[%emt 0:08:11]} 11. Bxe7 {[%emt 0:00:57]} Qxe7 {[%emt 0:00:50]} 12. Nxe4 {[%emt 0:05:04]} dxe4 {[%emt 0:01:45]} 13. Nd2 {[%emt 0:00:07]} Bd5 {[%emt 0:04:35]} 14. Bc4 {[%emt 0:03:53]} c6 {[%emt 0:02:11]} 15. Qb3 {[%emt 0:03:30]} Rd8 {[%emt 0:01:29]} 16. O-O {[%emt 0:01:50]} Na6 {[%emt 0:16:24]} 17. f3 {[%emt 0:00:18]} exf3 {[%emt 0:03:57]} 18. Nxf3 {[%emt 0:01:59]} Nc7 {[%emt 0:09:10]} 19. Ne5 {[%emt 0:01:39]} Rf8 {[%emt 0:01:13]} 20. e4 {[%emt 0:01:52]} Bxc4 21. Qxc4 {[%emt 0:00:33]} c5 {[%emt 0:06:17]} 22. Ng6 {[%emt 0:00:37]} Qxe4 {[%emt 0:02:49]} 23. Nxf8 {[%emt 0:00:19]} Rxf8 {[%emt 0:00:36]} 24. dxc5 {[%emt 0:00:22]} Qe3+ {[%emt 0:00:14]} 25. Kh1 {[%emt 0:00:24]} Ne6 {[%emt 0:00:28]} 26. c6 {[%emt 0:00:38]} Rc8 {[%emt 0:00:28]} 27. b4 {[%emt 0:01:00]} Rc7 {[%emt 0:00:34]} 28. b5 {[%emt 0:00:39]} h5 {[%emt 0:00:59]} 29. a4 {[%emt 0:00:37]} g5 {[%emt 0:00:36]} 30. Rcd1 {[%emt 0:00:54]} h4 {[%emt 0:01:31]} 31. h3 {[%emt 0:00:28]} Nc5 {[%emt 0:00:34]} 32. Rde1 {[%emt 0:01:19]} Qd2 {[%emt 0:00:37]} 33. Re5 {[%emt 0:00:47]} Kg7 {[%emt 0:00:28]} 34. Qg4 {[%emt 0:01:04]} Ne6 {[%emt 0:00:21]} 35. Rxe6 {[%emt 0:00:39]} fxe6 {[%emt 0:00:18]} 36. Qxe6 {[%emt 0:00:06]} Qd8 {[%emt 0:00:45]} 37. Qe5+ {[%emt 0:00:55]} Kg8 {[%emt 0:00:26]} 38. Rf5 {[%emt 0:00:19]} Rg7 {[%emt 0:00:26]} 39. Qe6+ {[%emt 0:00:16]} Kh7 {[%emt 0:00:39]} 40. Rf6 {[%emt 0:00:00]} Qd1+ {[%emt 0:00:00]} 41. Kh2 {[%emt 0:00:58]} Qh5 {[%emt 0:00:49]} 42. Qf5+ {[%emt 0:00:37]} Kh8 {[%emt 0:04:17]} 43. Rf8+ {[%emt 0:00:14]} Rg8 {[%emt 0:00:26]} 1-0

[Event "ESTCC-50 2025"]
[Site "Swidnica"]
[Date "2025.04.09"]
[Round "5.2"]
[White "Machlowski, Slawomir"]
[Black "Holzke, Frank"]
[Result "1/2-1/2"]
[Annotator "ChessBase"]
[ECO "A08"]
[WhiteElo "1963"]
[BlackElo "2412"]
[PlyCount "66"]
[EventDate "2025.04.05"]
[EventType "team-tourn"]
[EventCountry "POL"]
[SourceTitle "playchess.com"]
[Source "ChessBase"]
[SourceQuality "1"]
[WhiteTeam "Czech Republic"]
[BlackTeam "Germany"]
[WhiteTeamCountry "CZE"]
[BlackTeamCountry "GER"]
[TimeControl "40/5400+30:1800+30"]

1. Nf3 {[%emt 0:00:05]} d5 {[%emt 0:00:27]} 2. g3 {[%emt 0:00:22]} c5 {[%emt 0:00:31]} 3. Bg2 {[%emt 0:00:18]} Nc6 {[%emt 0:00:28]} 4. d4 {[%emt 0:00:28]} e6 {[%emt 0:00:17]} 5. O-O {[%emt 0:00:30]} cxd4 {[%emt 0:00:20]} 6. Nxd4 {[%emt 0:00:16]} Nge7 {[%emt 0:00:21]} 7. Nxc6 {[%emt 0:02:29]} Nxc6 {[%emt 0:00:27]} 8. c4 {[%emt 0:00:57]} d4 {[%emt 0:00:26]} 9. e3 {[%emt 0:04:56]} Bc5 {[%emt 0:00:47]} 10. exd4 {[%emt 0:02:59]} Bxd4 {[%emt 0:00:19]} 11. Nc3 {[%emt 0:04:35]} O-O {[%emt 0:00:34]} 12. Qc2 {[%emt 0:01:29]} e5 {[%emt 0:04:21]} 13. Nd5 {[%emt 0:05:14]} Be6 {[%emt 0:01:49]} 14. Be3 {[%emt 0:06:30]} Rc8 {[%emt 0:02:26]} 15. Qa4 {[%emt 0:05:23]} Bxe3 {[%emt 0:17:10]} 16. Nxe3 {[%emt 0:00:50]} Qb6 {[%emt 0:04:56]} 17. Rab1 {[%emt 0:05:07]} Rfd8 {[%emt 0:07:50]} 18. b4 {[%emt 0:07:13]} Rd4 {[%emt 0:06:27]} 19. Rfc1 {[%emt 0:03:16]} h5 {[%emt 0:11:01]} 20. a3 {[%emt 0:05:04]} e4 {[%emt 0:03:33]} 21. c5 {[%emt 0:07:32]} Qd8 {[%emt 0:01:59]} 22. Rd1 {[%emt 0:03:18]} f5 {[%emt 0:04:29]} 23. Bh3 {[%emt 0:01:33]} g6 {[%emt 0:03:35]} 24. Rxd4 {[%emt 0:02:19]} Qxd4 {[%emt 0:01:29]} 25. Bf1 {[%emt 0:03:54]} a6 {[%emt 0:04:10]} 26. Rd1 {[%emt 0:01:23]} Qc3 {[%emt 0:01:41]} 27. b5 {[%emt 0:00:54]} axb5 {[%emt 0:04:44]} 28. Qxb5 {[%emt 0:01:02]} Nd4 {[%emt 0:05:20]} 29. Qxb7 {[%emt 0:00:59]} Qxc5 {[%emt 0:01:00]} 30. Rb1 {[%emt 0:02:48]} Rc7 {[%emt 0:03:37]} 31. Qb8+ {[%emt 0:03:42]} Rc8 {[%emt 0:02:13]} 32. Qb7 {[%emt 0:00:14]} Rc7 {[%emt 0:01:32]} 33. Qb8+ {[%emt 0:00:08]} Rc8 {[%emt 0:01:04]} 1/2-1/2

[Event "ESTCC-50 2025"]
[Site "Swidnica"]
[Date "2025.04.09"]
[Round "5.3"]
[White "Boensch, Uwe"]
[Black "Kruczynski, Marek"]
[Result "1-0"]
[Annotator "ChessBase"]
[ECO "B06"]
[WhiteElo "2465"]
[BlackElo "1862"]
[PlyCount "81"]
[EventDate "2025.04.05"]
[EventType "team-tourn"]
[EventCountry "POL"]
[SourceTitle "playchess.com"]
[Source "ChessBase"]
[SourceQuality "1"]
[WhiteTeam "Germany"]
[BlackTeam "Poland"]
[WhiteTeamCountry "GER"]
[BlackTeamCountry "POL"]
[TimeControl "40/5400+30:1800+30"]

1. d4 {[%emt 0:00:03]} g6 {[%emt 0:00:31]} 2. e4 {[%emt 0:00:35]} Bg7 {[%emt 0:00:25]} 3. h4 {[%emt 0:00:32]} h5 {[%emt 0:00:33]} 4. Nf3 {[%emt 0:00:16]} d6 {[%emt 0:01:36]} 5. Ng5 {[%emt 0:00:09]} Nh6 {[%emt 0:06:10]} 6. c3 {[%emt 0:17:07]} O-O {[%emt 0:03:59]} 7. Nd2 {[%emt 0:06:17]} c6 {[%emt 0:09:32]} 8. Be2 {[%emt 0:07:51]} e5 {[%emt 0:10:39]} 9. dxe5 {[%emt 0:12:02]} dxe5 {[%emt 0:02:27]} 10. O-O {[%emt 0:00:50]} Qe7 {[%emt 0:06:28]} 11. a4 {[%emt 0:00:20]} f6 {[%emt 0:02:20]} 12. Ngf3 {[%emt 0:01:27]} Be6 {[%emt 0:02:21]} 13. Bc4 {[%emt 0:00:57]} Bxc4 {[%emt 0:03:25]} 14. Nxc4 {[%emt 0:00:04]} Nf7 {[%emt 0:01:11]} 15. Qb3 {[%emt 0:03:06]} b6 {[%emt 0:03:33]} 16. Rd1 {[%emt 0:01:04]} Kh8 {[%emt 0:02:41]} 17. Be3 {[%emt 0:00:49]} Na6 {[%emt 0:04:17]} 18. a5 {[%emt 0:03:50]} b5 {[%emt 0:01:47]} 19. Qa3 {[%emt 0:00:45]} c5 {[%emt 0:01:42]} 20. Ncd2 {[%emt 0:00:10]} Rfd8 {[%emt 0:04:13]} 21. c4 {[%emt 0:02:38]} b4 {[%emt 0:08:39]} 22. Qa4 {[%emt 0:00:10]} Nc7 {[%emt 0:01:16]} 23. Nb3 {[%emt 0:00:47]} Ne6 {[%emt 0:00:09]} 24. Rd5 {[%emt 0:00:21]} Rxd5 {[%emt 0:01:45]} 25. cxd5 {[%emt 0:01:19]} Nd4 {[%emt 0:00:30]} 26. Bxd4 {[%emt 0:00:16]} cxd4 {[%emt 0:07:54]} 27. Rc1 {[%emt 0:00:12]} Bf8 {[%emt 0:01:09]} 28. Qc6 {[%emt 0:11:43]} Rd8 {[%emt 0:01:44]} 29. Qe6 {[%emt 0:10:26]} Re8 {[%emt 0:04:23]} 30. Qxe7 {[%emt 0:01:47]} Bxe7 {[%emt 0:03:50]} 31. Rc7 {[%emt 0:00:10]} Nd6 {[%emt 0:00:16]} 32. Nfd2 {[%emt 0:05:40]} f5 {[%emt 0:00:24]} 33. f3 {[%emt 0:01:39]} Bxh4 {[%emt 0:01:02]} 34. Rxa7 {[%emt 0:00:06]} Bg5 {[%emt 0:00:42]} 35. a6 {[%emt 0:01:20]} Be3+ {[%emt 0:00:11]} 36. Kf1 {[%emt 0:00:21]} fxe4 {[%emt 0:01:15]} 37. Rd7 {[%emt 0:03:08]} Nb5 {[%emt 0:01:38]} 38. Nxe4 {[%emt 0:00:16]} Rc8 {[%emt 0:00:53]} 39. Nf6 {[%emt 0:02:12]} Rc7 {[%emt 0:00:20]} 40. Rxc7 {[%emt 0:00:00]} Nxc7 {[%emt 0:00:00]} 41. d6 {[%emt 0:00:24]} 1-0

[Event "ESTCC-50 2025"]
[Site "Swidnica"]
[Date "2025.04.09"]
[Round "5.4"]
[White "Szydelko, Kazimierz"]
[Black "Kribben, Matthias"]
[Result "1/2-1/2"]
[Annotator "NA"]
[ECO "A52"]
[WhiteElo "1798"]
[BlackElo "2060"]
[PlyCount "106"]
[EventDate "2025.04.05"]
[EventType "team-tourn"]
[EventCountry "POL"]
[SourceTitle "playchess.com"]
[Source "ChessBase"]
[SourceQuality "1"]
[WhiteTeam "Poland"]
[WhiteTeamCountry "POL"]
[TimeControl "40/5400+30:1800+30"]

1. d4 {[%emt 0:00:03]} Nf6 {[%emt 0:00:19]} 2. c4 {[%emt 0:00:07]} e5 {[%emt 0:00:16]} 3. dxe5 {[%emt 0:00:22]} Ng4 {[%emt 0:00:06]} 4. Nf3 {[%emt 0:01:37]} Nc6 {[%emt 0:00:38]} 5. Nc3 {[%emt 0:01:31]} Bb4 {[%emt 0:03:19]} 6. Qc2 {[%emt 0:01:34]} Ngxe5 {[%emt 0:03:12]} 7. a3 {[%emt 0:05:52]} Nxf3+ {[%emt 0:01:04]} 8. exf3 {[%emt 0:00:11]} Qe7+ {[%emt 0:10:57]} 9. Be3 {[%emt 0:05:45]} Bxc3+ {[%emt 0:01:54]} 10. Qxc3 {[%emt 0:00:59]} O-O {[%emt 0:04:52]} 11. Bd3 {[%emt 0:01:15]} d6 {[%emt 0:06:04]} 12. O-O {[%emt 0:05:33]} Ne5 {[%emt 0:16:35]} 13. Bc2 {[%emt 0:01:38]} b6 {[%emt 0:09:26]} 14. Rfe1 {[%emt 0:03:23]} Qh4 {[%emt 0:06:14]} 15. Bd4 {[%emt 0:09:03]} f6 {[%emt 0:02:58]} 16. Be4 {[%emt 0:13:03]} Rb8 {[%emt 0:00:20]} 17. Bd5+ {[%emt 0:01:14]} Kh8 {[%emt 0:00:37]} 18. Re4 {[%emt 0:04:11]} Qh6 {[%emt 0:05:35]} 19. f4 {[%emt 0:13:14]} f5 {[%emt 0:03:06]} 20. Re3 {[%emt 0:05:39]} Qxf4 {[%emt 0:03:43]} 21. Rxe5 {[%emt 0:00:39]} dxe5 {[%emt 0:00:59]} 22. Bxe5 {[%emt 0:00:01]} Qg5 {[%emt 0:06:00]} 23. Bxc7 {[%emt 0:01:08]} Rb7 {[%emt 0:00:31]} 24. Bxb7 {[%emt 0:07:18]} Bxb7 {[%emt 0:00:04]} 25. f3 {[%emt 0:04:08]} h5 {[%emt 0:03:26]} 26. Rd1 {[%emt 0:01:53]} Re8 {[%emt 0:03:18]} 27. Kf1 {[%emt 0:06:09]} Re3 {[%emt 0:02:07]} 28. Qd4 {[%emt 0:01:57]} Qe7 {[%emt 0:01:35]} 29. Bf4 {[%emt 0:01:19]} Re6 {[%emt 0:01:17]} 30. Qd8+ {[%emt 0:00:42]} Kh7 {[%emt 0:00:32]} 31. Qxe7 {[%emt 0:01:34]} Rxe7 {[%emt 0:00:02]} 32. Kf2 {[%emt 0:00:58]} Kg8 {[%emt 0:02:47]} 33. Rd8+ {[%emt 0:00:55]} Kh7 {[%emt 0:00:30]} 34. b4 {[%emt 0:00:35]} Ba6 {[%emt 0:01:23]} 35. c5 {[%emt 0:01:21]} h4 {[%emt 0:00:29]} 36. Rd2 {[%emt 0:00:12]} Bb5 {[%emt 0:00:35]} 37. cxb6 {[%emt 0:00:17]} axb6 {[%emt 0:00:04]} 38. Bg5 {[%emt 0:00:36]} Ra7 {[%emt 0:00:08]} 39. Bxh4 {[%emt 0:00:23]} Rxa3 {[%emt 0:00:10]} 40. Be7 {[%emt 0:00:00]} Bc4 {[%emt 0:00:00]} 41. Kg3 {[%emt 0:04:16]} Rd3 {[%emt 0:04:28]} 42. Re2 {[%emt 0:03:27]} Kg6 {[%emt 0:02:28]} 43. Rc2 {[%emt 0:01:43]} b5 {[%emt 0:00:29]} 44. Bc5 {[%emt 0:00:11]} Ra3 {[%emt 0:02:04]} 45. Kf4 {[%emt 0:00:45]} Ra2 {[%emt 0:00:32]} 46. Rxa2 {[%emt 0:00:49]} Bxa2 {[%emt 0:00:03]} 47. Bd4 {[%emt 0:01:13]} Be6 {[%emt 0:02:12]} 48. Ke5 {[%emt 0:00:40]} Bc4 {[%emt 0:01:16]} 49. Kf4 {[%emt 0:01:40]} Be6 {[%emt 0:00:23]} 50. h4 {[%emt 0:00:49]} Kf7 {[%emt 0:03:21]} 51. h5 {[%emt 0:00:31]} g6 {[%emt 0:06:07]} 52. h6 {[%emt 0:00:13]} Kg8 {[%emt 0:00:02]} 53. Ke5 {[%emt 0:01:11]} Bc4 {[%emt 0:00:14]} 1/2-1/2

[Event "ESTCC-50 2025"]
[Site "Swidnica"]
[Date "2025.04.09"]
[Round "5.5"]
[White "Lalic, Susan K"]
[Black "Zeidler, Sven P."]
[Result "1/2-1/2"]
[Annotator "ChessBase"]
[ECO "B00"]
[WhiteElo "2227"]
[BlackElo "2143"]
[PlyCount "93"]
[EventDate "2025.04.05"]
[EventType "team-tourn"]
[EventCountry "POL"]
[SourceTitle "playchess.com"]
[Source "ChessBase"]
[SourceQuality "1"]
[WhiteTeam "England"]
[BlackTeam "Wales"]
[WhiteTeamCountry "ENG"]
[BlackTeamCountry "WLS"]
[TimeControl "40/5400+30:1800+30"]

1. e4 {[%emt 0:00:17]} Nc6 {[%emt 0:00:05]} 2. Nf3 {[%emt 0:00:37]} d6 {[%emt 0:00:09]} 3. d4 {[%emt 0:00:59]} Nf6 {[%emt 0:00:05]} 4. Nc3 {[%emt 0:00:31]} g6 {[%emt 0:00:06]} 5. Be3 {[%emt 0:01:25]} Bg7 {[%emt 0:00:20]} 6. Qd2 {[%emt 0:02:25]} a6 {[%emt 0:00:57]} 7. O-O-O {[%emt 0:03:00]} O-O {[%emt 0:01:37]} 8. h4 {[%emt 0:07:14]} Bg4 {[%emt 0:11:56]} 9. h5 {[%emt 0:04:44]} Bxh5 {[%emt 0:02:55]} 10. Bh6 {[%emt 0:05:03]} Bxh6 {[%emt 0:24:22]} 11. Qxh6 {[%emt 0:00:09]} Ng4 {[%emt 0:00:09]} 12. Qd2 {[%emt 0:27:58]} e5 {[%emt 0:01:31]} 13. d5 {[%emt 0:03:18]} Nd4 {[%emt 0:12:50]} 14. Nxd4 {[%emt 0:03:12]} exd4 {[%emt 0:00:06]} 15. Qxd4 {[%emt 0:00:24]} Qg5+ {[%emt 0:14:50]} 16. Qd2 {[%emt 0:07:32]} Qxd2+ {[%emt 0:05:55]} 17. Rxd2 {[%emt 0:00:04]} f5 {[%emt 0:01:46]} 18. exf5 {[%emt 0:01:49]} Rae8 {[%emt 0:05:53]} 19. Bd3 {[%emt 0:03:00]} Nf6 {[%emt 0:00:35]} 20. f3 {[%emt 0:08:00]} gxf5 {[%emt 0:00:09]} 21. Bxf5 {[%emt 0:00:46]} Re5 {[%emt 0:00:52]} 22. g4 {[%emt 0:00:52]} Bg6 {[%emt 0:02:33]} 23. f4 {[%emt 0:03:38]} Re7 {[%emt 0:00:36]} 24. Be6+ {[%emt 0:01:06]} Bf7 {[%emt 0:02:48]} 25. g5 {[%emt 0:01:04]} Ne8 {[%emt 0:00:26]} 26. f5 {[%emt 0:03:40]} Bxe6 {[%emt 0:02:21]} 27. fxe6 {[%emt 0:00:20]} c6 {[%emt 0:03:07]} 28. Rdh2 {[%emt 0:04:51]} Rf5 {[%emt 0:01:24]} 29. g6 {[%emt 0:01:51]} h5 {[%emt 0:00:31]} 30. Rxh5 {[%emt 0:00:13]} Rxh5 {[%emt 0:00:09]} 31. Rxh5 {[%emt 0:00:04]} cxd5 {[%emt 0:00:30]} 32. Nxd5 {[%emt 0:00:41]} Rxe6 {[%emt 0:00:14]} 33. Rh7 {[%emt 0:01:10]} Ng7 {[%emt 0:00:40]} 34. Nf4 {[%emt 0:01:33]} Rf6 {[%emt 0:01:21]} 35. Rxg7+ {[%emt 0:00:47]} Kxg7 {[%emt 0:00:07]} 36. Nh5+ {[%emt 0:00:01]} Kxg6 {[%emt 0:00:11]} 37. Nxf6 {[%emt 0:00:01]} Kxf6 {[%emt 0:00:10]} 38. Kd2 {[%emt 0:00:22]} Ke5 {[%emt 0:00:20]} 39. Kc3 {[%emt 0:00:11]} Kd5 {[%emt 0:00:47]} 40. Kb4 {[%emt 0:00:00]} b6 {[%emt 0:00:00]} 41. a4 {[%emt 0:01:09]} Kc6 {[%emt 0:05:53]} 42. b3 {[%emt 0:11:58]} Kd5 {[%emt 0:07:06]} 43. c4+ {[%emt 0:09:33]} Kc6 {[%emt 0:01:22]} 44. a5 {[%emt 0:01:27]} bxa5+ {[%emt 0:01:23]} 45. Kxa5 {[%emt 0:00:05]} Kc5 {[%emt 0:02:58]} 46. Kxa6 {[%emt 0:01:35]} Kb4 {[%emt 0:00:12]} 47. Kb6 {[%emt 0:01:00]} 1/2-1/2

[Event "ESTCC-50 2025"]
[Site "Swidnica"]
[Date "2025.04.09"]
[Round "5.6"]
[White "Fletcher, John"]
[Black "Lauterbach, Ingrid"]
[Result "1-0"]
[Annotator "NA"]
[ECO "A40"]
[WhiteElo "1989"]
[BlackElo "1998"]
[PlyCount "89"]
[EventDate "2025.04.05"]
[EventType "team-tourn"]
[EventCountry "POL"]
[SourceTitle "playchess.com"]
[Source "ChessBase"]
[SourceQuality "1"]
[WhiteTeam "Wales"]
[BlackTeam "England"]
[WhiteTeamCountry "WLS"]
[BlackTeamCountry "ENG"]
[TimeControl "40/5400+30:1800+30"]

1. d4 {[%emt 0:00:17]} g6 {[%emt 0:00:12]} 2. e4 {[%emt 0:00:34]} c6 {[%emt 0:00:23]} 3. Nc3 {[%emt 0:00:48]} d6 {[%emt 0:00:27]} 4. f4 {[%emt 0:01:32]} d5 {[%emt 0:00:32]} 5. Nf3 {[%emt 0:14:32]} Bg4 {[%emt 0:17:00]} 6. exd5 {[%emt 0:01:06]} cxd5 {[%emt 0:00:14]} 7. h3 {[%emt 0:01:18]} Bxf3 {[%emt 0:00:19]} 8. Qxf3 {[%emt 0:00:27]} e6 {[%emt 0:00:17]} 9. Be3 {[%emt 0:08:01]} Qa5 {[%emt 0:07:57]} 10. Bd3 {[%emt 0:06:04]} Nc6 {[%emt 0:04:24]} 11. O-O {[%emt 0:01:48]} Bg7 {[%emt 0:02:23]} 12. Nb5 {[%emt 0:06:48]} Qd8 {[%emt 0:05:24]} 13. f5 {[%emt 0:01:11]} Qd7 {[%emt 0:14:45]} 14. fxe6 {[%emt 0:08:54]} fxe6 {[%emt 0:00:18]} 15. Qf7+ {[%emt 0:00:15]} Qxf7 {[%emt 0:00:33]} 16. Nd6+ {[%emt 0:00:08]} Ke7 {[%emt 0:02:11]} 17. Nxf7 {[%emt 0:06:31]} Bxd4 {[%emt 0:02:34]} 18. Bxd4 {[%emt 0:00:16]} Nxd4 {[%emt 0:00:06]} 19. Nxh8 {[%emt 0:01:06]} Nf6 {[%emt 0:00:00]} 20. Nxg6+ {[%emt 0:01:09]} hxg6 {[%emt 0:00:10]} 21. Bxg6 {[%emt 0:00:12]} e5 {[%emt 0:00:32]} 22. Rae1 {[%emt 0:01:17]} e4 {[%emt 0:00:37]} 23. c3 {[%emt 0:00:51]} Nc6 {[%emt 0:01:26]} 24. c4 {[%emt 0:05:50]} Ne5 {[%emt 0:00:16]} 25. Bf5 {[%emt 0:05:32]} Nxc4 {[%emt 0:00:41]} 26. g4 {[%emt 0:09:06]} Rg8 {[%emt 0:04:26]} 27. Rf2 {[%emt 0:02:30]} Ne5 {[%emt 0:01:37]} 28. Rd1 {[%emt 0:00:34]} Nf3+ {[%emt 0:09:07]} 29. Kg2 {[%emt 0:00:23]} Nh5 {[%emt 0:04:22]} 30. Rxf3 {[%emt 0:00:34]} exf3+ {[%emt 0:00:20]} 31. Kxf3 {[%emt 0:00:05]} Nf6 {[%emt 0:00:33]} 32. Re1+ {[%emt 0:01:39]} Kd8 {[%emt 0:00:40]} 33. Rc1 {[%emt 0:03:15]} Ne8 {[%emt 0:02:04]} 34. h4 {[%emt 0:00:47]} Nc7 {[%emt 0:04:51]} 35. g5 {[%emt 0:01:04]} Rf8 {[%emt 0:04:48]} 36. Kg4 {[%emt 0:00:12]} Re8 {[%emt 0:00:09]} 37. h5 {[%emt 0:01:11]} Re2 {[%emt 0:00:34]} 38. Rc2 {[%emt 0:00:08]} Re1 {[%emt 0:03:05]} 39. Rh2 {[%emt 0:00:00]} d4 {[%emt 0:00:28]} 40. h6 {[%emt 0:00:00]} Nd5 {[%emt 0:00:00]} 41. h7 {[%emt 0:04:59]} Ne3+ {[%emt 0:00:50]} 42. Kf3 {[%emt 0:04:45]} Nxf5 {[%emt 0:00:24]} 43. h8=Q+ {[%emt 0:00:37]} Kd7 {[%emt 0:00:00]} 44. Rh7+ {[%emt 0:01:27]} Ne7 {[%emt 0:00:19]} 45. Qxd4+ {[%emt 0:00:11]} 1-0

[Event "ESTCC-50 2025"]
[Site "Swidnica"]
[Date "2025.04.09"]
[Round "5.7"]
[White "Regan, Natasha K"]
[Black "Van Kemenade, Rudy"]
[Result "1-0"]
[Annotator "NA"]
[ECO "A05"]
[WhiteElo "2056"]
[BlackElo "1945"]
[PlyCount "65"]
[EventDate "2025.04.05"]
[EventType "team-tourn"]
[EventCountry "POL"]
[SourceTitle "playchess.com"]
[Source "ChessBase"]
[SourceQuality "1"]
[WhiteTeam "England"]
[BlackTeam "Wales"]
[WhiteTeamCountry "ENG"]
[BlackTeamCountry "WLS"]
[TimeControl "40/5400+30:1800+30"]

1. Nf3 {[%emt 0:00:02]} Nf6 {[%emt 0:00:08]} 2. c4 {[%emt 0:00:20]} g6 {[%emt 0:00:07]} 3. b4 {[%emt 0:00:08]} Bg7 {[%emt 0:00:06]} 4. Bb2 {[%emt 0:00:06]} O-O {[%emt 0:00:09]} 5. g3 {[%emt 0:04:21]} d6 {[%emt 0:00:30]} 6. Bg2 {[%emt 0:00:10]} e5 {[%emt 0:00:09]} 7. d3 {[%emt 0:00:18]} Nc6 {[%emt 0:00:08]} 8. b5 {[%emt 0:00:25]} Ne7 {[%emt 0:00:09]} 9. c5 {[%emt 0:01:12]} Ne8 {[%emt 0:00:07]} 10. cxd6 {[%emt 0:06:00]} cxd6 {[%emt 0:00:39]} 11. O-O {[%emt 0:03:46]} h6 {[%emt 0:00:29]} 12. a4 {[%emt 0:11:39]} f5 {[%emt 0:00:28]} 13. Qb3+ {[%emt 0:01:46]} Kh8 {[%emt 0:00:21]} 14. Nbd2 {[%emt 0:03:42]} g5 {[%emt 0:00:20]} 15. e4 {[%emt 0:02:11]} f4 {[%emt 0:00:46]} 16. d4 {[%emt 0:02:10]} g4 {[%emt 0:00:34]} 17. Nh4 {[%emt 0:07:07]} f3 {[%emt 0:00:09]} 18. Bh1 {[%emt 0:00:13]} exd4 {[%emt 0:04:00]} 19. Qd3 {[%emt 0:03:58]} Nf6 {[%emt 0:04:32]} 20. Bxd4 {[%emt 0:04:08]} d5 {[%emt 0:03:59]} 21. e5 {[%emt 0:08:32]} Nfg8 {[%emt 0:03:43]} 22. a5 {[%emt 0:03:52]} Qe8 {[%emt 0:05:52]} 23. Rfe1 {[%emt 0:08:54]} Bd7 {[%emt 0:01:41]} 24. Rab1 {[%emt 0:04:49]} a6 {[%emt 0:01:05]} 25. bxa6 {[%emt 0:01:16]} bxa6 {[%emt 0:00:53]} 26. e6 {[%emt 0:01:57]} Bb5 {[%emt 0:01:17]} 27. Bxg7+ {[%emt 0:01:14]} Kxg7 {[%emt 0:00:30]} 28. Qd4+ {[%emt 0:01:08]} Kh7 {[%emt 0:01:07]} 29. Qxg4 {[%emt 0:01:10]} Nf6 {[%emt 0:01:00]} 30. Qd4 {[%emt 0:02:18]} Nc6 {[%emt 0:01:40]} 31. Qb2 {[%emt 0:02:48]} Nxa5 {[%emt 0:00:57]} 32. Qc2+ {[%emt 0:01:24]} Kg7 {[%emt 0:00:32]} 33. Qc7+ {[%emt 0:01:17]} 1-0

[Event "ESTCC-50 2025"]
[Site "Swidnica"]
[Date "2025.04.09"]
[Round "5.8"]
[White "Hughes, Anthony"]
[Black "Jackson, Sheila"]
[Result "1/2-1/2"]
[Annotator "NA"]
[ECO "A22"]
[WhiteElo "1911"]
[BlackElo "2031"]
[PlyCount "35"]
[EventDate "2025.04.05"]
[EventType "team-tourn"]
[EventCountry "POL"]
[SourceTitle "playchess.com"]
[Source "ChessBase"]
[SourceQuality "1"]
[WhiteTeam "Wales"]
[BlackTeam "England"]
[WhiteTeamCountry "WLS"]
[BlackTeamCountry "ENG"]
[TimeControl "40/5400+30:1800+30"]

1. c4 {[%emt 0:00:03]} e5 {[%emt 0:00:11]} 2. Nc3 {[%emt 0:00:08]} Nf6 {[%emt 0:00:10]} 3. g3 {[%emt 0:00:08]} c6 {[%emt 0:00:32]} 4. Nf3 {[%emt 0:00:11]} e4 {[%emt 0:00:17]} 5. Nd4 {[%emt 0:00:15]} Qb6 {[%emt 0:00:15]} 6. Nb3 {[%emt 0:02:58]} a5 {[%emt 0:00:31]} 7. d3 {[%emt 0:01:56]} a4 {[%emt 0:01:33]} 8. Nd2 {[%emt 0:00:42]} exd3 {[%emt 0:12:57]} 9. Bg2 {[%emt 0:02:37]} Bb4 {[%emt 0:23:06]} 10. O-O {[%emt 0:02:42]} O-O {[%emt 0:06:27]} 11. exd3 {[%emt 0:24:21]} a3 {[%emt 0:07:56]} 12. Qc2 {[%emt 0:27:47]} Qa5 {[%emt 0:02:47]} 13. Nce4 {[%emt 0:05:29]} Nxe4 {[%emt 0:06:41]} 14. Nxe4 {[%emt 0:00:59]} d5 {[%emt 0:00:46]} 15. bxa3 {[%emt 0:01:55]} Bxa3 {[%emt 0:08:58]} 16. Bxa3 {[%emt 0:04:20]} Qxa3 {[%emt 0:00:05]} 17. cxd5 {[%emt 0:02:03]} cxd5 {[%emt 0:00:09]} 18. Nc5 {[%emt 0:02:18]} 1/2-1/2